[Event "Reykjavik Open 2025"]
[Site "Reykjavik"]
[Date "2025.04.15"]
[Round "9.17"]
[White "Dushyant Sharma"]
[Black "Kilic, Eray"]
[Result "1-0"]
[Annotator "RC"]
[ECO "B94"]
[WhiteElo "2313"]
[BlackElo "2473"]
[PlyCount "69"]
[EventDate "2025.04.09"]
[EventType "swiss"]
[EventCountry "ISL"]
[SourceTitle "playchess.com"]
[Source "ChessBase"]
[SourceQuality "1"]
[TimeControl "40/5400+30:1800+30"]

1. e4 {[%emt 0:03:37]} c5 {[%emt 0:00:02]} 2. Nf3 {[%emt 0:00:06]} d6 {[%emt 0:00:03]} 3. d4 {[%emt 0:00:06]} cxd4 {[%emt 0:00:04]} 4. Nxd4 {[%emt 0:00:04]} Nf6 {[%emt 0:00:04]} 5. Nc3 {[%emt 0:00:07]} a6 {[%emt 0:00:03]} 6. Bg5 {[%emt 0:00:06]} Nbd7 {[%emt 0:00:04]} 7. Bc4 {[%emt 0:01:06]} Qb6 {[%emt 0:00:04]} 8. Bb3 {[%emt 0:00:08]} e6 {[%emt 0:00:05]} 9. Bxf6 {[%emt 0:00:46]} Nxf6 {[%emt 0:00:04]} 10. Qd2 {[%emt 0:00:09]} Nd7 {[%emt 0:00:04]} 11. O-O-O {[%emt 0:00:21]} Nc5 {[%emt 0:00:05]} 12. f4 {[%emt 0:03:24]} Bd7 {[%emt 0:03:26]} 13. f5 {[%emt 0:02:08]} O-O-O {[%emt 0:01:00]} 14. Rhf1 {[%emt 0:01:48]} Kb8 {[%emt 0:04:17]} 15. fxe6 {[%emt 0:08:37]} fxe6 {[%emt 0:00:04]} 16. Rf7 {[%emt 0:01:03]} Qa5 {[%emt 0:01:57]} 17. Kb1 {[%emt 0:04:15]} Be8 {[%emt 0:01:15]} 18. Rf2 {[%emt 0:04:09]} Bd7 {[%emt 0:11:30]} 19. Rf7 {[%emt 0:01:52]} h6 {[%emt 0:00:21]} 20. Rdf1 {[%emt 0:03:05]} e5 {[%emt 0:01:37]} 21. Nde2 {[%emt 0:05:24]} Nxb3 {[%emt 0:03:13]} 22. axb3 {[%emt 0:00:02]} Qb4 {[%emt 0:04:29]} 23. Qd3 {[%emt 0:11:09]} Be6 {[%emt 0:01:44]} 24. Nd5 {[%emt 0:00:22]} Qc5 {[%emt 0:00:17]} 25. b4 {[%emt 0:01:04]} Qc6 {[%emt 0:00:19]} 26. Rc7 {[%emt 0:05:57]} Qe8 {[%emt 0:00:18]} 27. Nec3 {[%emt 0:00:50]} Rd7 {[%emt 0:00:14]} 28. Qc4 {[%emt 0:05:47]} Qd8 {[%emt 0:01:09]} 29. Rxd7 {[%emt 0:00:08]} Bxd7 {[%emt 0:00:05]} 30. b5 {[%emt 0:06:11]} Qc8 {[%emt 0:07:56]} 31. Qa4 {[%emt 0:05:45]} Qd8 {[%emt 0:02:50]} 32. Rf7 {[%emt 0:08:47]} Be8 {[%emt 0:04:41]} 33. Rxb7+ {[%emt 0:02:39]} Kxb7 {[%emt 0:01:42]} 34. Qxa6+ {[%emt 0:00:05]} Kb8 {[%emt 0:00:03]} 35. Nb6 {[%emt 0:00:09]} 1-0

[Event "Reykjavik Open 2025"]
[Site "Reykjavik"]
[Date "2025.04.15"]
[Round "9.18"]
[White "Prraneeth Vuppala"]
[Black "Pattnayak Nilsu"]
[Result "1-0"]
[Annotator "RC"]
[ECO "C42"]
[WhiteElo "2433"]
[BlackElo "2146"]
[PlyCount "81"]
[EventDate "2025.04.09"]
[EventType "swiss"]
[EventCountry "ISL"]
[SourceTitle "playchess.com"]
[Source "ChessBase"]
[SourceQuality "1"]
[TimeControl "40/5400+30:1800+30"]

1. e4 {[%emt 0:03:50]} e5 {[%emt 0:00:17]} 2. Nf3 {[%emt 0:00:15]} Nf6 {[%emt 0:00:24]} 3. Nxe5 {[%emt 0:00:16]} d6 {[%emt 0:00:05]} 4. Nf3 {[%emt 0:00:07]} Nxe4 {[%emt 0:00:07]} 5. c4 {[%emt 0:00:30]} Be7 {[%emt 0:10:57]} 6. Nc3 {[%emt 0:00:14]} Bf5 {[%emt 0:02:40]} 7. Nd5 {[%emt 0:01:27]} O-O {[%emt 0:01:28]} 8. Be2 {[%emt 0:02:07]} c6 {[%emt 0:11:50]} 9. Ne3 {[%emt 0:00:50]} Bg6 {[%emt 0:00:49]} 10. d3 {[%emt 0:02:24]} Qa5+ {[%emt 0:07:44]} 11. Kf1 {[%emt 0:00:14]} Nc5 {[%emt 0:01:13]} 12. h4 {[%emt 0:02:52]} h6 {[%emt 0:01:51]} 13. Bd2 {[%emt 0:01:18]} Qc7 {[%emt 0:02:11]} 14. Bc3 {[%emt 0:01:36]} Ne6 {[%emt 0:06:31]} 15. g4 {[%emt 0:09:48]} Nd7 {[%emt 0:03:48]} 16. Qd2 {[%emt 0:08:05]} Rfe8 {[%emt 0:18:12]} 17. Rg1 {[%emt 0:17:30]} Bh7 {[%emt 0:08:56]} 18. Nf5 {[%emt 0:02:39]} Bf8 {[%emt 0:01:55]} 19. h5 {[%emt 0:02:48]} f6 {[%emt 0:00:25]} 20. N3h4 {[%emt 0:06:30]} Ne5 {[%emt 0:00:49]} 21. Rc1 {[%emt 0:12:54]} Rad8 {[%emt 0:01:39]} 22. d4 {[%emt 0:01:43]} Nf7 {[%emt 0:01:10]} 23. Bd3 {[%emt 0:00:10]} Neg5 {[%emt 0:07:14]} 24. Kg2 {[%emt 0:06:04]} Ne4 {[%emt 0:00:33]} 25. Qc2 {[%emt 0:00:33]} Nxc3 {[%emt 0:00:13]} 26. Ne7+ {[%emt 0:01:59]} Bxe7 {[%emt 0:02:55]} 27. Bxh7+ {[%emt 0:00:05]} Kh8 {[%emt 0:00:05]} 28. bxc3 {[%emt 0:00:11]} f5 {[%emt 0:03:28]} 29. Nxf5 {[%emt 0:05:49]} Bg5 {[%emt 0:00:40]} 30. f4 {[%emt 0:01:35]} Bxf4 {[%emt 0:02:14]} 31. Rcf1 {[%emt 0:00:01]} Kxh7 {[%emt 0:02:05]} 32. Rxf4 {[%emt 0:00:25]} Kg8 {[%emt 0:00:12]} 33. Nxg7 {[%emt 0:01:22]} d5 {[%emt 0:01:31]} 34. Rgf1 {[%emt 0:03:25]} Re7 {[%emt 0:00:32]} 35. Rxf7 {[%emt 0:02:32]} Rxf7 {[%emt 0:00:09]} 36. Ne6 {[%emt 0:00:02]} Qd7 {[%emt 0:00:27]} 37. Qg6+ {[%emt 0:00:42]} Rg7 {[%emt 0:00:10]} 38. Nxg7 {[%emt 0:00:04]} Qxg7 {[%emt 0:00:03]} 39. Qe6+ {[%emt 0:00:04]} Kh8 {[%emt 0:00:16]} 40. Rf6 {[%emt 0:00:20]} Rd6 {[%emt 0:01:01]} 41. Qc8+ {[%emt 0:30:21]} 1-0

[Event "Reykjavik Open 2025"]
[Site "Reykjavik"]
[Date "2025.04.15"]
[Round "9.19"]
[White "Lu, Miaoyi"]
[Black "Boissonnier, Kimo"]
[Result "1-0"]
[Annotator "RC"]
[ECO "B05"]
[WhiteElo "2429"]
[BlackElo "2019"]
[PlyCount "45"]
[EventDate "2025.04.09"]
[EventType "swiss"]
[EventCountry "ISL"]
[SourceTitle "playchess.com"]
[Source "ChessBase"]
[SourceQuality "1"]
[TimeControl "40/5400+30:1800+30"]

1. e4 {[%emt 0:00:04]} Nf6 {[%emt 0:01:33]} 2. e5 {[%emt 0:00:09]} Nd5 {[%emt 0:00:09]} 3. d4 {[%emt 0:00:07]} d6 {[%emt 0:00:11]} 4. Nf3 {[%emt 0:01:15]} Bg4 {[%emt 0:00:12]} 5. Be2 {[%emt 0:00:11]} e6 {[%emt 0:01:09]} 6. O-O {[%emt 0:00:24]} Nc6 {[%emt 0:04:45]} 7. c4 {[%emt 0:00:32]} Nde7 {[%emt 0:04:59]} 8. exd6 {[%emt 0:02:24]} Qxd6 {[%emt 0:02:13]} 9. Nc3 {[%emt 0:00:05]} a6 {[%emt 0:01:21]} 10. d5 {[%emt 0:03:56]} Bxf3 {[%emt 0:04:23]} 11. Bxf3 {[%emt 0:01:11]} Ne5 {[%emt 0:00:21]} 12. dxe6 {[%emt 0:07:49]} O-O-O {[%emt 0:00:37]} 13. exf7 {[%emt 0:05:51]} Qf6 {[%emt 0:12:11]} 14. Bxb7+ {[%emt 0:02:44]} Kxb7 {[%emt 0:00:35]} 15. Qxd8 {[%emt 0:00:02]} g5 {[%emt 0:01:34]} 16. Ne4 {[%emt 0:06:45]} Qxf7 {[%emt 0:03:57]} 17. Nc5+ {[%emt 0:00:30]} Kc6 {[%emt 0:00:26]} 18. Nxa6 {[%emt 0:00:28]} Nf5 {[%emt 0:05:54]} 19. Qa8+ {[%emt 0:00:41]} Kb6 {[%emt 0:04:07]} 20. a4 {[%emt 0:02:29]} Nxc4 {[%emt 0:00:58]} 21. a5+ {[%emt 0:03:47]} Nxa5 {[%emt 0:01:22]} 22. Nxc7 {[%emt 0:00:26]} Nb7 {[%emt 0:06:20]} 23. Ne6 {[%emt 0:00:07]} 1-0

[Event "Reykjavik Open 2025"]
[Site "Reykjavik"]
[Date "2025.04.15"]
[Round "9.20"]
[White "Pisk, Petr"]
[Black "Niermann, Tristan"]
[Result "1/2-1/2"]
[Annotator "RC"]
[ECO "B25"]
[WhiteElo "2302"]
[BlackElo "2427"]
[PlyCount "66"]
[EventDate "2025.04.09"]
[EventType "swiss"]
[EventCountry "ISL"]
[SourceTitle "playchess.com"]
[Source "ChessBase"]
[SourceQuality "1"]
[TimeControl "40/5400+30:1800+30"]

1. Nf3 {[%emt 0:00:01]} c5 {[%emt 0:00:22]} 2. g3 {[%emt 0:02:37]} Nc6 {[%emt 0:00:57]} 3. Bg2 {[%emt 0:00:44]} g6 {[%emt 0:00:13]} 4. e4 {[%emt 0:03:05]} Nf6 {[%emt 0:02:56]} 5. Nc3 {[%emt 0:04:20]} Bg7 {[%emt 0:00:39]} 6. O-O {[%emt 0:00:42]} O-O {[%emt 0:01:38]} 7. d3 {[%emt 0:00:40]} d6 {[%emt 0:02:42]} 8. Bg5 {[%emt 0:04:57]} h6 {[%emt 0:06:28]} 9. Be3 {[%emt 0:03:40]} e5 {[%emt 0:01:26]} 10. h3 {[%emt 0:04:10]} Be6 {[%emt 0:01:11]} 11. Nd2 {[%emt 0:02:01]} Nd4 {[%emt 0:02:42]} 12. f4 {[%emt 0:04:09]} exf4 {[%emt 0:01:25]} 13. gxf4 {[%emt 0:06:34]} d5 {[%emt 0:01:49]} 14. f5 {[%emt 0:12:12]} gxf5 {[%emt 0:01:26]} 15. Bxd4 {[%emt 0:06:21]} cxd4 {[%emt 0:01:06]} 16. Nxd5 {[%emt 0:00:16]} Bxd5 {[%emt 0:01:38]} 17. exd5 {[%emt 0:00:50]} Nxd5 {[%emt 0:00:28]} 18. Bxd5 {[%emt 0:04:13]} Qxd5 {[%emt 0:00:09]} 19. Qh5 {[%emt 0:00:08]} Qc6 {[%emt 0:06:58]} 20. Qxf5 {[%emt 0:02:39]} Qxc2 {[%emt 0:01:54]} 21. Ne4 {[%emt 0:11:00]} Qc7 {[%emt 0:27:21]} 22. Rac1 {[%emt 0:07:19]} Qe5 {[%emt 0:10:27]} 23. Rc5 {[%emt 0:01:16]} Qxf5 {[%emt 0:01:13]} 24. Rfxf5 {[%emt 0:00:08]} Rfc8 {[%emt 0:08:47]} 25. Rxc8+ {[%emt 0:01:34]} Rxc8 {[%emt 0:00:04]} 26. Rxf7 {[%emt 0:00:10]} Kxf7 {[%emt 0:03:38]} 27. Nd6+ {[%emt 0:00:24]} Ke6 {[%emt 0:00:04]} 28. Nxc8 {[%emt 0:00:07]} Kd5 {[%emt 0:01:37]} 29. Ne7+ {[%emt 0:03:28]} Ke5 {[%emt 0:01:19]} 30. Ng6+ {[%emt 0:01:33]} Kf5 {[%emt 0:00:59]} 31. Nh4+ {[%emt 0:06:46]} Ke5 {[%emt 0:00:29]} 32. Ng6+ {[%emt 0:00:59]} Kf5 {[%emt 0:00:17]} 33. Nh4+ {[%emt 0:00:02]} Ke5 {[%emt 0:00:09]} 1/2-1/2

[Event "Reykjavik Open 2025"]
[Site "Reykjavik"]
[Date "2025.04.15"]
[Round "9.21"]
[White "Llari, Marc"]
[Black "Thorhallsson, Throstur"]
[Result "1/2-1/2"]
[Annotator "RC"]
[ECO "D37"]
[WhiteElo "2299"]
[BlackElo "2394"]
[PlyCount "46"]
[EventDate "2025.04.09"]
[EventType "swiss"]
[EventCountry "ISL"]
[SourceTitle "playchess.com"]
[Source "ChessBase"]
[SourceQuality "1"]
[TimeControl "40/5400+30:1800+30"]

1. d4 {[%emt 0:00:03]} Nf6 {[%emt 0:00:45]} 2. c4 {[%emt 0:00:06]} e6 {[%emt 0:00:07]} 3. Nf3 {[%emt 0:00:04]} d5 {[%emt 0:00:09]} 4. Nc3 {[%emt 0:00:04]} a6 {[%emt 0:01:52]} 5. cxd5 {[%emt 0:00:07]} exd5 {[%emt 0:00:32]} 6. Qb3 {[%emt 0:00:05]} Be7 {[%emt 0:04:22]} 7. Bf4 {[%emt 0:01:45]} c6 {[%emt 0:05:51]} 8. e3 {[%emt 0:00:14]} Nbd7 {[%emt 0:00:27]} 9. h3 {[%emt 0:01:10]} O-O {[%emt 0:00:45]} 10. Bd3 {[%emt 0:00:27]} Re8 {[%emt 0:05:12]} 11. O-O {[%emt 0:01:01]} Nf8 {[%emt 0:04:56]} 12. Rfc1 {[%emt 0:03:17]} Bd6 {[%emt 0:03:25]} 13. Bxd6 {[%emt 0:00:15]} Qxd6 {[%emt 0:00:01]} 14. Na4 {[%emt 0:00:51]} Rb8 {[%emt 0:05:32]} 15. Nb6 {[%emt 0:07:35]} Be6 {[%emt 0:03:22]} 16. Ng5 {[%emt 0:03:48]} h6 {[%emt 0:03:20]} 17. Nxe6 {[%emt 0:00:06]} Nxe6 {[%emt 0:00:16]} 18. Na4 {[%emt 0:01:59]} Nd7 {[%emt 0:01:41]} 19. Bf5 {[%emt 0:09:58]} Ng5 {[%emt 0:08:18]} 20. Nc5 {[%emt 0:09:43]} Nxc5 {[%emt 0:05:28]} 21. Rxc5 {[%emt 0:00:16]} g6 {[%emt 0:01:49]} 22. Bd3 {[%emt 0:00:16]} Kg7 {[%emt 0:01:11]} 23. Qb6 {[%emt 0:02:53]} Ne6 {[%emt 0:01:59]} 1/2-1/2

[Event "Reykjavik Open 2025"]
[Site "Reykjavik"]
[Date "2025.04.15"]
[Round "9.22"]
[White "Golis, Wiktor"]
[Black "Kirk, Ezra"]
[Result "1-0"]
[Annotator "RC"]
[ECO "A50"]
[WhiteElo "2293"]
[BlackElo "2394"]
[PlyCount "65"]
[EventDate "2025.04.09"]
[EventType "swiss"]
[EventCountry "ISL"]
[SourceTitle "playchess.com"]
[Source "ChessBase"]
[SourceQuality "1"]
[TimeControl "40/5400+30:1800+30"]

1. c4 {[%emt 0:00:01]} Nf6 {[%emt 0:03:34]} 2. Nc3 {[%emt 0:00:07]} g6 {[%emt 0:01:45]} 3. Nf3 {[%emt 0:00:10]} Bg7 {[%emt 0:00:39]} 4. g3 {[%emt 0:00:19]} b6 {[%emt 0:01:07]} 5. Bg2 {[%emt 0:00:50]} Bb7 {[%emt 0:00:07]} 6. O-O {[%emt 0:00:06]} O-O {[%emt 0:00:44]} 7. d4 {[%emt 0:01:12]} Ne4 {[%emt 0:02:07]} 8. Bd2 {[%emt 0:03:19]} Nxd2 {[%emt 0:07:48]} 9. Qxd2 {[%emt 0:00:17]} e6 {[%emt 0:00:59]} 10. e4 {[%emt 0:11:17]} d6 {[%emt 0:01:03]} 11. d5 {[%emt 0:04:26]} e5 {[%emt 0:07:31]} 12. b4 {[%emt 0:06:55]} Nd7 {[%emt 0:01:39]} 13. Rfc1 {[%emt 0:09:22]} Qe7 {[%emt 0:07:36]} 14. Ne1 {[%emt 0:01:22]} f5 {[%emt 0:02:36]} 15. Nd3 {[%emt 0:00:05]} Nf6 {[%emt 0:01:14]} 16. Qe2 {[%emt 0:21:29]} Bh6 {[%emt 0:06:37]} 17. Rc2 {[%emt 0:00:20]} fxe4 {[%emt 0:04:00]} 18. Nxe4 {[%emt 0:00:22]} Nxe4 {[%emt 0:00:09]} 19. Bxe4 {[%emt 0:02:12]} a5 {[%emt 0:01:11]} 20. c5 {[%emt 0:05:16]} bxc5 {[%emt 0:04:34]} 21. bxc5 {[%emt 0:00:46]} Ba6 {[%emt 0:00:14]} 22. cxd6 {[%emt 0:01:56]} cxd6 {[%emt 0:00:10]} 23. Rb1 {[%emt 0:00:47]} Qa7 {[%emt 0:03:24]} 24. Kg2 {[%emt 0:06:12]} Qd4 {[%emt 0:01:22]} 25. Rd1 {[%emt 0:08:44]} Bc4 {[%emt 0:09:14]} 26. Qg4 {[%emt 0:05:06]} Bxd3 {[%emt 0:16:10]} 27. Rxd3 {[%emt 0:00:18]} Qb6 {[%emt 0:00:09]} 28. h4 {[%emt 0:02:28]} Rf6 {[%emt 0:00:56]} 29. h5 {[%emt 0:01:31]} Raf8 {[%emt 0:01:29]} 30. Rf3 {[%emt 0:00:10]} Kg7 {[%emt 0:04:56]} 31. hxg6 {[%emt 0:00:45]} hxg6 {[%emt 0:02:59]} 32. Rc8 {[%emt 0:01:47]} Rxc8 {[%emt 0:03:16]} 33. Qd7+ {[%emt 0:00:35]} 1-0